bitfinex/quotes_SOLUSD_20250415
["timestamp","ask_amount","ask_price","bid_price","bid_amount"]
[1744721555591,81.63,132.31,132.29,18.64964886]
[1744721556605,81.63,132.31,132.3,18.64964886]
[1744721556994,0.03,132.31,132.3,17.61723076]
[1744721558201,0.03,132.31,132.3,43.82537962]
[1744721558793,0.03,132.31,132.3,61.44261038]
[1744721559491,0.03,132.33,132.32,63.81507962]
[1744721560421,0.03,132.33,132.32,71.37247962]
[1744721562084,0.03,132.35,132.32,96.30427962]
[1744721562290,0.03,132.35,132.34,43.82307962]
[1744721562613,0.03,132.35,132.34,69.82307962]
[1744721563026,0.0001,132.36,132.35,44.64964886]
[1744721563233,0.0001,132.36,132.35,62.26687962]
[1744721564603,0.0001,132.36,132.35,69.82257962]
[1744721564818,0.0001,132.36,132.35,99.82257962]
[1744721570839,0.0001,132.36,132.33,17.61723076]
[1744721571006,0.0001,132.36,132.34,30.0]
[1744721571325,0.0001,132.36,132.35,18.64964886]
[1744721571912,99.21733076,132.36,132.3,25.17553076]
[1744721572230,17.61723076,132.35,132.32,18.64964886]
[1744721572406,99.21723076,132.35,132.32,18.64964886]
[1744721572724,109.55723076,132.35,132.32,18.64964886]
[1744721573309,91.94,132.35,132.32,18.64964886]
[1744721573512,109.55723076,132.35,132.32,18.64964886]
[1744721573709,7.5562,132.34,132.32,18.64964886]
[1744721573911,99.21723076,132.33,132.29,0.063]
[1744721575214,17.61723076,132.32,132.29,0.063]
[1744721575818,25.17493076,132.32,132.29,0.063]
[1744721576517,17.61723076,132.31,132.29,0.063]
[1744721576920,17.61723076,132.3,132.29,0.063]
[1744721577331,17.61723076,132.31,132.29,0.063]
[1744721577539,31.40833076,132.32,132.29,18.71264886]
[1744721578038,7.5577,132.32,132.29,18.71264886]
[1744721578940,25.17423076,132.33,132.29,18.71264886]
[1744721579129,81.6,132.32,132.29,18.71264886]
[1744721581423,89.1575,132.32,132.29,18.71264886]
[1744721582244,89.1575,132.32,132.29,0.063]
[1744721582245,106.77473076,132.32,132.29,0.063]
[1744721582545,89.1575,132.32,132.29,18.71264886]
[1744721582938,81.6,132.32,132.29,26.27154886]
[1744721583131,81.6,132.32,132.31,17.61723076]
[1744721583334,91.94,132.35,132.31,17.61723076]
[1744721583652,17.61723076,132.32,132.29,0.063]
[1744721584138,17.61723076,132.33,132.29,17.68023076]
[1744721584324,25.17443076,132.33,132.3,18.64964886]
[1744721584821,25.17443076,132.33,132.29,0.063]
[1744721584822,17.61723076,132.32,132.29,0.063]
[1744721586332,7.558,132.31,132.29,0.063]
[1744721586659,17.61723076,132.3,132.29,0.063]
[1744721587955,25.17473076,132.32,132.29,0.063]
[1744721588251,106.77473076,132.32,132.29,0.063]
[1744721588857,81.6,132.32,132.29,0.063]
[1744721589043,81.6,132.32,132.29,17.68023076]
[1744721589254,89.1575,132.32,132.29,0.063]
[1744721590152,89.1575,132.32,132.29,17.68023076]
[1744721590451,81.6,132.32,132.29,17.68023076]
[1744721591850,81.6,132.32,132.3,17.61723076]
[1744721592427,89.1575,132.32,132.3,17.61723076]
[1744721592637,89.1575,132.32,132.29,17.68023076]
[1744721593963,89.1575,132.32,132.29,0.063]
[1744721594744,89.1575,132.32,132.29,17.68023076]
[1744721595257,81.6,132.32,132.3,18.64964886]
[1744721595568,81.6,132.32,132.3,36.26687962]
[1744721596461,81.6,132.32,132.3,18.64964886]
[1744721596949,89.1575,132.32,132.29,0.063]
[1744721597630,106.77473076,132.32,132.29,0.063]
[1744721598256,17.61723076,132.3,132.29,0.063]
[1744721598553,27.95723076,132.3,132.29,0.063]
[1744721598946,7.5571,132.33,132.3,18.64964886]
[1744721599145,81.6,132.32,132.3,18.64964886]
[1744721599346,81.6,132.32,132.29,18.71264886]
[1744721599948,27.12293507,132.32,132.29,0.063]
[1744721600765,34.68083507,132.32,132.29,0.063]
[1744721602063,34.68083507,132.32,132.29,29.97168551]
[1744721602234,27.12293507,132.32,132.31,11.25903665]
[1744721602440,27.12293507,132.32,132.31,29.90868551]
[1744721602950,27.12293507,132.32,132.31,18.64964886]
[1744721603865,81.6,132.31,132.29,0.063]
[1744721604366,92.85903665,132.3,132.29,0.063]
[1744721605064,100.41753665,132.3,132.29,0.063]
[1744721605649,18.81753665,132.3,132.29,0.063]
[1744721606149,63.85368325,132.3,132.29,0.063]
[1744721606352,82.75008325,132.3,132.23,18.71264886]
[1744721606552,11.25903665,132.26,132.23,18.71264886]
[1744721607163,17.61219931,132.26,132.23,18.71264886]
[1744721608339,17.61219931,132.27,132.23,18.71264886]
[1744721608551,7.56,132.28,132.23,43.88734817]
[1744721608752,25.17219931,132.28,132.23,43.88734817]
[1744721609044,27.95219931,132.29,132.24,17.61219931]
[1744721609240,17.61219931,132.27,132.23,18.71264886]
[1744721610257,81.6,132.26,132.23,0.063]
[1744721610460,81.6,132.25,132.23,0.063]
[1744721611065,89.1616,132.25,132.23,0.063]
[1744721614191,81.6,132.24,132.23,0.063]
[1744721614363,81.6,132.24,132.23,17.67519931]
[1744721616279,81.6,132.24,132.23,0.063]
[1744721616488,35.51419931,132.24,132.23,0.063]
[1744721616658,17.902,132.24,132.23,0.063]
[1744721635290,7.5597,132.28,132.23,76.67648371]
[1744721635474,7.5597,132.28,132.26,11.27410697]
[1744721635977,7.5597,132.28,132.26,18.64964886]
[1744721636494,92.87410697,132.27,132.23,0.063]
[1744721636790,11.27410697,132.24,132.23,0.063]
[1744721636994,21.63410697,132.24,132.23,0.063]
[1744721638303,29.19610697,132.24,132.23,0.0001]
[1744721639275,53.18019858,132.24,132.23,0.0001]
[1744721639475,53.18019858,132.24,132.21,0.0001]
[1744721639476,26.0,132.22,132.21,0.0001]
[1744721639691,43.62909929,132.22,132.21,0.0001]
[1744721640488,7.5631,132.22,132.21,0.0001]
[1744721641308,10.34,132.23,132.21,0.0001]
[1744721642401,17.9027,132.23,132.21,0.0001]
[1744721644899,10.34,132.23,132.21,17.62919929]
[1744721645401,17.9026,132.23,132.21,17.62919929]
[1744721646481,99.5026,132.23,132.21,17.62919929]
[1744721646996,99.5026,132.23,132.21,0.0001]
[1744721647206,117.13169929,132.23,132.21,0.0001]
[1744721647688,17.62909929,132.22,132.21,0.0001]
[1744721648800,31.41059929,132.22,132.21,0.0001]
[1744721649003,17.62909929,132.2,132.19,0.0001]
[1744721650202,25.19329929,132.2,132.19,0.0001]
[1744721653310,26.0,132.18,132.17,0.0001]
[1744721653511,53.98909929,132.18,132.17,0.0001]
[1744721654395,8.2407,132.17,132.15,0.063]
[1744721654597,26.0,132.14,132.09,0.063]
[1744721654907,17.62909929,132.12,132.09,0.063]
[1744721655996,25.19789929,132.12,132.09,0.063]
[1744721656391,25.19789929,132.12,132.11,0.0001]
[1744721656795,51.19789929,132.12,132.09,0.063]
[1744721657110,43.62909929,132.1,132.09,0.0001]
[1744721657322,43.62909929,132.1,132.05,0.063]
[1744721657323,67.82379858,132.1,132.05,0.063]
[1744721657490,17.62909929,132.08,132.05,0.063]
[1744721657696,27.98909929,132.08,132.05,0.063]
[1744721658009,17.9311,132.08,132.05,0.063]
[1744721658216,35.56019929,132.08,132.05,0.063]
[1744721659014,17.9311,132.08,132.05,18.71264886]
[1744721660795,35.56019929,132.08,132.05,0.063]
[1744721661291,10.36,132.08,132.05,17.69209929]
[1744721661602,17.9311,132.08,132.05,17.69209929]
[1744721661802,17.9311,132.08,132.05,0.063]
[1744721662493,35.56019929,132.08,132.05,0.063]
[1744721662816,17.9311,132.08,132.05,0.063]
[1744721663202,35.56019929,132.08,132.05,0.063]
[1744721664003,17.9311,132.08,132.05,0.063]
[1744721664322,17.9311,132.08,132.05,17.69209929]
[1744721665419,10.36,132.08,132.06,17.69209929]
[1744721665627,7.5706,132.09,132.06,17.69209929]
[1744721665827,7.5706,132.09,132.06,0.063]
[1744721666025,25.19969929,132.09,132.06,0.063]
[1744721666406,7.5706,132.09,132.06,0.063]
[1744721667427,7.5706,132.09,132.06,36.34174815]
[1744721667627,25.19909929,132.1,132.06,18.71264886]
[1744721668317,17.62909929,132.09,132.06,0.063]
[1744721669328,44.12409929,132.1,132.06,0.063]
[1744721669833,17.62909929,132.09,132.06,0.063]
[1744721671622,7.5711,132.08,132.06,0.063]
[1744721671919,10.36,132.12,132.08,20.19734886]
[1744721672125,17.9291,132.12,132.1,17.62909929]
[1744721672430,10.36,132.12,132.11,17.62909929]
[1744721672629,17.9289,132.12,132.1,17.62909929]
[1744721673036,10.36,132.12,132.1,17.62909929]
[1744721673417,17.9289,132.12,132.1,17.62909929]
[1744721673726,17.9289,132.12,132.09,18.64964886]
[1744721673927,17.62909929,132.11,132.08,1.5477]
[1744721674137,35.55799929,132.12,132.08,1.5477]
[1744721674840,17.62909929,132.11,132.08,1.5477]
[1744721675937,7.5705,132.09,132.07,0.063]
[1744721676807,89.1703,132.1,132.07,18.71264886]
[1744721677010,81.6,132.1,132.07,36.34174815]
[1744721677240,81.6,132.1,132.08,17.62909929]
[1744721678045,81.6,132.1,132.09,36.27874815]
[1744721678336,81.6,132.1,132.09,18.64964886]
[1744721679841,81.6,132.1,132.09,17.62909929]
[1744721680345,81.6,132.1,132.09,36.27874815]
[1744721685844,81.6,132.1,132.08,7.5706]
[1744721685845,81.6,132.1,132.08,17.62909929]
[1744721687233,89.17,132.1,132.08,17.62909929]
[1744721687547,81.6,132.1,132.08,17.62909929]
[1744721689556,81.6,132.1,132.09,36.27874815]
[1744721691141,89.17,132.1,132.08,17.62909929]
[1744721691349,89.17,132.1,132.08,18.64964886]
[1744721691537,81.6,132.1,132.08,18.64964886]
[1744721692054,81.6,132.1,132.08,36.27874815]
[1744721692351,81.6,132.1,132.09,17.62909929]
[1744721693333,81.6,132.12,132.1,18.64964886]
[1744721693670,81.6,132.12,132.1,36.27874815]
[1744721694147,81.6,132.12,132.11,36.27874815]
[1744721694356,81.663,132.14,132.11,37.86574815]
[1744721694554,81.663,132.14,132.13,36.27874815]
[1744721695626,81.663,132.14,132.13,43.84704815]
[1744721696251,0.063,132.14,132.13,36.27874815]
[1744721696759,0.063,132.14,132.13,43.84704815]
[1744721710164,0.063,132.16,132.15,46.28154886]
[1744721710458,0.063,132.16,132.15,81.53974744]
[1744721710763,0.063,132.16,132.15,63.91064815]
[1744721711160,0.063,132.16,132.15,71.47774815]
[1744721713371,0.063,132.16,132.15,63.91064815]
[1744721713874,0.063,132.16,132.15,36.27874815]
[1744721714738,0.063,132.16,132.15,43.84584815]
[1744721718053,0.063,132.16,132.15,36.27874815]
[1744721719152,0.063,132.16,132.15,43.84584815]
[1744721721084,86.89602432,132.19,132.15,43.84584815]
[1744721721262,86.89602432,132.19,132.17,18.64964886]
[1744721721451,86.89602432,132.19,132.17,29.92927088]
[1744721722070,86.89602432,132.19,132.14,26.21734886]
[1744721722248,86.89602432,132.19,132.17,11.27962202]
[1744721723673,86.89602432,132.19,132.17,18.64964886]
[1744721727554,79.33112432,132.18,132.13,26.0]
[1744721727758,90.61074634,132.18,132.13,29.92927088]
[1744721728079,11.27962202,132.14,132.09,11.27962202]
[1744721728257,90.61074634,132.13,132.09,11.27962202]
[1744721728458,79.33112432,132.13,132.1,18.64964886]
[1744721728657,79.33112432,132.13,132.07,33.6344]
[1744721728658,79.33112432,132.13,132.08,26.28324886]
[1744721729074,79.33112432,132.13,132.09,26.0]
[1744721729283,79.33112432,132.13,132.1,18.64964886]
[1744721730758,79.33112432,132.13,132.12,18.64964886]
[1744721730987,79.33112432,132.15,132.12,18.64964886]
[1744721731582,86.89822432,132.15,132.1,7.5698]
[1744721731799,86.89822432,132.15,132.1,26.21944886]
[1744721732190,86.89822432,132.15,132.11,18.64964886]
[1744721732191,79.33112432,132.15,132.11,18.64964886]
[1744721732360,79.33112432,132.17,132.12,1.5549]
[1744721733093,79.33112432,132.17,132.14,18.64964886]
[1744721735881,79.33112432,132.17,132.14,26.21684886]
[1744721737081,86.89722432,132.17,132.14,18.64964886]
[1744721737285,79.33112432,132.16,132.14,18.64964886]
[1744721739181,86.89782432,132.16,132.14,18.64964886]
[1744721739481,79.33112432,132.16,132.14,18.64964886]
[1744721740073,86.89782432,132.16,132.14,18.64964886]
[1744721741773,86.89782432,132.16,132.12,18.64964886]
[1744721742684,79.33112432,132.15,132.09,1.6103]
[1744721742886,79.33112432,132.14,132.1,18.64964886]
[1744721743671,79.33112432,132.14,132.11,7.5694]
[1744721744697,79.33112432,132.14,132.12,18.64964886]
[1744721745595,79.33112432,132.14,132.13,26.21794886]
[1744721748175,79.33112432,132.14,132.13,18.64964886]
[1744721748377,79.33112432,132.14,132.13,26.21794886]
[1744721748984,79.33112432,132.14,132.13,18.64964886]
[1744721750696,7.5654,132.18,132.13,26.21764886]
[1744721750895,79.33112432,132.17,132.13,26.21764886]
[1744721753601,86.89712432,132.17,132.13,26.21764886]
[1744721754902,79.33112432,132.16,132.13,26.21764886]
[1744721757505,79.33112432,132.16,132.14,18.64964886]
[1744721758903,79.33112432,132.16,132.12,44.9212]
[1744721758904,79.33112432,132.16,132.15,7.5671]
[1744721759699,79.33112432,132.16,132.15,26.21674886]
[1744721759904,79.33112432,132.16,132.15,18.64964886]
[1744721761582,79.33112432,132.16,132.15,26.21674886]
[1744721763726,79.33112432,132.19,132.16,18.64964886]
[1744721763926,0.063,132.22,132.19,18.64964886]
[1744721764096,0.063,132.22,132.19,20.18274886]
[1744721764808,79.33112432,132.21,132.19,20.18274886]
[1744721764988,79.33112432,132.21,132.19,18.64964886]
[1744721766018,79.33112432,132.21,132.19,26.21444886]
[1744721767831,0.063,132.22,132.19,45.12654886]
[1744721768119,0.063,132.22,132.19,46.69474886]
[1744721771134,0.063,132.22,132.21,44.64964886]
[1744721772012,0.063,132.22,132.21,52.21334886]
[1744721778534,0.063,132.22,132.21,55.90844222]
[1744721781220,0.063,132.24,132.22,18.64964886]
[1744721781410,0.063,132.28,132.25,25.17324886]
[1744721781609,0.063,132.28,132.27,18.64964886]
[1744721783245,0.063,132.28,132.27,26.20984886]
[1744721785521,0.0001,132.28,132.27,27.73484886]
[1744721786422,0.0001,132.29,132.28,44.64964886]
[1744721786812,0.03,132.32,132.31,44.64964886]
[1744721787526,0.03,132.32,132.31,52.20764886]
[1744721788046,0.03,132.35,132.34,44.64964886]
[1744721789059,0.03,132.42,132.39,18.64964886]
[1744721789529,0.03,132.42,132.4,7.5528]
[1744721791647,0.03,132.41,132.4,26.20244886]
[1744721796046,0.03,132.41,132.4,52.20244886]
[1744721798245,79.33112432,132.47,132.45,18.64964886]
[1744721801051,79.33112432,132.46,132.45,18.64964886]
[1744721801365,79.33112432,132.49,132.45,26.19964886]
[1744721804759,79.33112432,132.48,132.45,26.19964886]
[1744721806267,2.625932,132.51,132.48,44.64964886]
[1744721806572,2.625932,132.51,132.5,18.64964886]
[1744721806959,2.625932,132.51,132.5,26.19674886]
[1744721809878,2.625932,132.51,132.5,27.74464886]
[1744721812078,3.2e-05,132.51,132.5,27.74464886]
[1744721812669,3.2e-05,132.51,132.49,7.5475]
[1744721812984,3.2e-05,132.51,132.49,18.64964886]
[1744721813282,3.2e-05,132.51,132.48,33.5483]
[1744721813481,3.2e-05,132.51,132.49,18.64964886]
[1744721813870,3.2e-05,132.51,132.5,10.32]
[1744721814973,3.2e-05,132.51,132.5,43.8671]
[1744721815177,3.2e-05,132.51,132.5,62.51674886]
[1744721815381,3.2e-05,132.51,132.5,44.64964886]
[1744721815572,3.2e-05,132.51,132.5,26.19674886]
[1744721816083,3.2e-05,132.51,132.5,18.64964886]
[1744721817867,3.2e-05,132.51,132.5,26.19674886]
[1744721818069,3.2e-05,132.51,132.5,52.19674886]
[1744721818882,3.2e-05,132.51,132.5,53.73394886]
[1744721820571,3.2e-05,132.51,132.5,52.19674886]
[1744721823889,3.2e-05,132.51,132.5,18.64964886]
[1744721825489,3.2e-05,132.51,132.5,26.19674886]
[1744721826174,3.2e-05,132.51,132.5,52.19674886]
[1744721830780,3.2e-05,132.51,132.5,18.64964886]
[1744721831185,3.2e-05,132.51,132.49,18.64964886]
[1744721832103,3.2e-05,132.51,132.5,26.19674886]
[1744721836411,3.2e-05,132.51,132.5,18.64964886]
[1744721837022,3.2e-05,132.51,132.47,7.5485]
[1744721837185,3.2e-05,132.51,132.48,18.64964886]
[1744721837695,3.2e-05,132.51,132.47,18.64964886]
[1744721839110,3.2e-05,132.51,132.47,26.19824886]
[1744721839889,81.6,132.5,132.47,26.19824886]
[1744721840218,81.6,132.5,132.47,18.64964886]
[1744721840715,81.6,132.5,132.47,26.19824886]
[1744721841095,81.6,132.5,132.47,18.64964886]
[1744721841609,81.6,132.5,132.47,26.19844886]
[1744721842710,81.6,132.5,132.47,18.64964886]
[1744721842911,89.1471,132.5,132.47,18.64964886]
[1744721843705,81.6,132.5,132.47,18.64964886]
[1744721844295,89.1471,132.5,132.47,18.64964886]
[1744721845814,81.6,132.49,132.44,18.71264886]
[1744721846116,7.5471,132.5,132.44,18.71264886]
[1744721846117,81.6,132.48,132.44,18.71264886]
[1744721846303,81.6,132.47,132.44,18.71264886]
[1744721848115,7.5494,132.46,132.44,18.71264886]
[1744721848417,81.6,132.45,132.44,18.71264886]
[1744721848803,81.6,132.45,132.44,0.063]
[1744721852617,81.6,132.47,132.44,0.063]
[1744721852818,89.1489,132.47,132.44,0.063]
[1744721854526,81.6,132.47,132.44,0.063]
[1744721860820,81.6,132.49,132.47,18.64964886]
[1744721861023,81.600032,132.51,132.47,18.64964886]
[1744721861225,81.600032,132.51,132.47,29.06964886]
[1744721862827,81.600032,132.51,132.49,18.64964886]
[1744721864632,3.2e-05,132.51,132.49,44.64964886]
[1744721864815,3.2e-05,132.51,132.5,26.19674886]
[1744721870127,0.03,132.53,132.52,44.64964886]
[1744721872128,0.03,132.53,132.52,52.19564886]
[1744721872628,0.03,132.53,132.52,62.61564886]
[1744721873835,0.03,132.53,132.52,68.60531028]
[1744721876035,0.03,132.53,132.52,62.61564886]
[1744721876231,0.03,132.55,132.53,18.64964886]
[1744721878141,0.0001,132.55,132.54,52.19444886]
[1744721879231,0.0001,132.55,132.54,26.19444886]
[1744721880639,0.0001,132.55,132.54,27.79454886]
[1744721882938,0.0001,132.57,132.56,44.64964886]
[1744721883938,9.1252,132.65,132.6,18.64964886]
[1744721883939,1.5863,132.65,132.6,18.64964886]
[1744721884449,81.6,132.66,132.62,18.64964886]
[1744721885017,81.6,132.66,132.62,44.64964886]
[1744721885842,83.2365,132.68,132.62,44.64964886]
[1744721886027,83.2365,132.68,132.62,55.00964886]
[1744721886232,83.2365,132.68,132.64,18.64964886]
[1744721886431,81.6,132.66,132.64,18.64964886]
[1744721888543,81.6,132.66,132.65,26.18824886]
[1744721889828,81.6,132.68,132.66,18.64964886]
[1744721890435,81.6,132.68,132.66,7.538]
[1744721890943,81.6,132.68,132.65,18.64964886]
[1744721892531,81.6,132.68,132.66,7.538]
[1744721894043,81.63,132.69,132.66,26.18764886]
[1744721898459,0.03,132.69,132.66,18.64964886]
[1744721898647,0.03,132.69,132.66,26.18764886]
[1744721898947,0.03,132.69,132.66,18.64964886]
[1744721901046,0.03,132.69,132.59,18.8547]
[1744721901047,81.6,132.66,132.59,18.8547]
[1744721901353,81.6,132.65,132.61,18.64964886]
[1744721902357,81.6,132.65,132.64,7.5392]
[1744721902527,81.6,132.65,132.63,26.18914886]
[1744721903224,81.6,132.65,132.63,18.64964886]
[1744721903939,89.1386,132.65,132.62,18.64964886]
[1744721904483,7.5409,132.61,132.54,7.5448]
[1744721904635,81.6,132.6,132.55,26.0]
[1744721904835,81.6,132.6,132.54,7.5448]
[1744721905056,81.6,132.6,132.55,18.64964886]
[1744721905350,81.6,132.6,132.55,26.0]
[1744721905551,81.6,132.6,132.56,26.19284886]
[1744721906560,81.6,132.6,132.56,45.05214886]
[1744721908049,81.6,132.6,132.59,44.64964886]
[1744721908463,81.6,132.6,132.59,18.64964886]
[1744721909968,7.5405,132.62,132.55,7.5443]
[1744721910173,81.6,132.61,132.58,18.64964886]
[1744721910473,81.6,132.6,132.56,18.64964886]
[1744721911865,81.6,132.6,132.58,18.64964886]
[1744721912945,81.6,132.6,132.58,44.64964886]
[1744721913863,81.6,132.6,132.59,7.542]
[1744721916268,81.6,132.64,132.59,7.542]
[1744721916572,81.6,132.63,132.6,18.64964886]
[1744721917776,81.6,132.63,132.62,44.64964886]
[1744721918639,81.6,132.63,132.62,52.18994886]
[1744721920957,81.6,132.62,132.57,18.8576]
[1744721921163,81.6,132.61,132.54,7.5448]
[1744721921372,81.6,132.6,132.55,18.64964886]
[1744721923064,81.6,132.6,132.57,18.64964886]
[1744721923264,81.6,132.59,132.57,18.64964886]
[1744721923453,81.6,132.62,132.57,18.64964886]
[1744721923848,10.5,132.64,132.59,18.64964886]
[1744721924047,81.6,132.62,132.59,18.64964886]
[1744721924448,81.6,132.62,132.61,18.64964886]
[1744721927456,81.6,132.62,132.59,26.19134886]
[1744721927852,81.6,132.61,132.59,26.19134886]
[1744721931455,81.6,132.65,132.59,45.04644886]
[1744721931654,81.6,132.64,132.59,45.04644886]
[1744721936687,81.6,132.63,132.59,45.04644886]
[1744721941468,0.03,132.66,132.59,26.19134886]
[1744721941469,81.6,132.62,132.59,26.19134886]
[1744721941666,81.6,132.61,132.59,26.19134886]
[1744721943488,81.6,132.65,132.61,18.64964886]
[1744721943682,81.6,132.64,132.61,18.64964886]
[1744721944393,81.6,132.64,132.63,18.64964886]
[1744721945393,81.6,132.64,132.63,26.18934886]
[1744721946596,81.63,132.66,132.65,44.64964886]
[1744721947575,81.63,132.66,132.65,52.18824886]
[1744721951307,0.03,132.66,132.65,52.18824886]
[1744721952093,0.03,132.67,132.66,18.64964886]
[1744721952605,0.03,132.67,132.66,44.64964886]
[1744721953711,0.03,132.67,132.66,52.18764886]
[1744721955410,0.03,132.67,132.66,18.64964886]
[1744721957807,0.03,132.67,132.63,18.64964886]
[1744721958598,0.03,132.67,132.63,26.18924886]
[1744721958797,0.03,132.67,132.63,18.64964886]
[1744721958798,81.6,132.66,132.63,18.64964886]
[1744721959089,81.6,132.65,132.58,7.5426]
[1744721959291,81.6,132.64,132.59,26.0]
[1744721959515,83.2625,132.63,132.56,7.5437]
[1744721959703,89.3501,132.63,132.56,7.5437]
[1744721960013,89.3501,132.63,132.57,44.64964886]
[1744721960487,89.3501,132.63,132.57,18.64964886]
[1744721960693,7.5403,132.62,132.57,33.5429]
[1744721960915,81.6,132.61,132.57,33.5429]
[1744721961713,81.6,132.61,132.57,7.5429]
[1744721961895,81.6,132.61,132.58,18.64964886]
[1744721963199,81.6,132.61,132.58,26.19174886]
[1744721966118,81.6,132.6,132.58,26.19174886]
[1744721968816,81.6,132.59,132.56,7.5433]
[1744721969021,81.6,132.58,132.53,25.28749612]
[1744721969311,81.6,132.57,132.54,18.64964886]
[1744721970409,81.6,132.57,132.53,25.28749612]
[1744721970617,81.6,132.56,132.51,0.063]
[1744721970792,89.1441,132.56,132.51,7.6095]
[1744721971818,81.6,132.55,132.51,0.063]
[1744721972034,6.5542,132.53,132.51,0.063]
[1744721973221,7.546,132.52,132.51,0.063]
[1744721973430,7.546,132.52,132.48,26.08880707]
[1744721973595,81.6,132.51,132.48,26.08880707]
[1744721974100,81.6,132.51,132.48,44.95950707]
[1744721976728,81.6,132.54,132.51,18.64964886]
[1744721977200,81.6,132.54,132.52,7.546]
[1744721977728,81.6,132.54,132.53,18.64964886]
[1744721980218,81.6,132.54,132.53,7.5454]
[1744721980620,81.6,132.57,132.53,7.5454]
[1744721980804,81.6,132.56,132.54,44.64964886]
[1744721982215,81.6,132.56,132.55,26.19394886]
[1744721983540,81.6,132.59,132.56,18.64964886]
[1744721983724,81.6,132.58,132.56,18.64964886]
[1744721984327,81.6,132.58,132.57,26.19274886]
[1744721989439,81.6,132.61,132.58,18.64964886]
[1744721990438,81.6,132.61,132.58,7.5421]
[1744721990851,81.6,132.61,132.55,18.64964886]
[1744721991041,89.141,132.61,132.55,18.64964886]
[1744721991230,81.6,132.6,132.51,26.19624886]
[1744721991437,81.6,132.59,132.51,26.19624886]
[1744721991635,81.6,132.59,132.53,18.64964886]
[1744721992450,81.6,132.59,132.55,18.64964886]
[1744721992636,81.6,132.58,132.55,18.64964886]
[1744721993451,81.6,132.58,132.55,7.5437]
[1744721994595,81.6,132.58,132.53,71.05864886]
[1744721997447,81.6,132.58,132.53,52.19504886]
[1744721998152,81.6,132.57,132.53,52.19504886]
[1744721998358,83.1382,132.57,132.53,18.64964886]
[1744721998855,81.6,132.56,132.51,7.5463]
[1744721999061,81.6,132.55,132.51,7.5463]
[1744721999245,89.1446,132.55,132.51,18.64964886]
[1744721999557,89.1446,132.55,132.51,26.19604886]
[1744721999946,81.6,132.55,132.51,26.19604886]
[1744722000258,81.6,132.54,132.51,26.19604886]
[1744722001142,81.6,132.53,132.51,26.19604886]
[1744722001644,81.6,132.53,132.51,18.64964886]
[1744722001848,81.6,132.53,132.5,7.5468]
[1744722001849,81.6,132.53,132.5,26.19644886]
[1744722002059,81.6,132.55,132.53,18.64964886]
[1744722003553,81.6,132.6,132.55,44.64964886]
[1744722003851,6.2187,132.65,132.55,44.64964886]
[1744722004050,6.2187,132.65,132.54,26.407]
[1744722004051,81.6,132.64,132.6,44.64964886]
[1744722004360,81.6,132.63,132.55,18.64964886]
[1744722004561,6.1936,132.61,132.53,33.5451]
[1744722004755,81.6,132.6,132.53,7.5451]
[1744722004939,81.6,132.6,132.54,18.64964886]
[1744722005645,81.6,132.6,132.56,18.64964886]
[1744722005964,81.6,132.59,132.56,18.64964886]
[1744722007361,81.6,132.58,132.56,18.64964886]
[1744722007545,81.6,132.58,132.57,26.19274886]
[1744722008646,81.6,132.58,132.57,52.19274886]
[1744722009451,81.6,132.58,132.57,18.64964886]
[1744722011356,81.6,132.57,132.54,18.64964886]
[1744722011558,81.6,132.56,132.54,18.64964886]
[1744722011761,81.6,132.56,132.54,26.19434886]
[1744722013263,81.6,132.56,132.54,18.64964886]
[1744722013468,81.6,132.56,132.5,18.64964886]
[1744722013469,81.6,132.55,132.5,18.64964886]
[1744722013765,81.6,132.55,132.5,52.19674886]
[1744722014158,81.6,132.55,132.54,18.64964886]
[1744722014464,81.6,132.59,132.58,18.64964886]
[1744722014769,81.6,132.61,132.58,18.64964886]